[Event "*** Titled Tuesday Blitz"]
[Site "Chess.com"]
[Date "2019.11.05"]
[Round "1"]
[White "LuisFSiles"]
[Black "NTBT_DHS"]
[Result "0-1"]
[WhiteElo "2301"]
[BlackElo "2661"]
[TimeControl "180+2"]
[EndTime "13:07:32 PST"]
[Termination "NTBT_DHS won by resignation"]

1. e4 {[%clk 0:02:58.4]} 1... g6 {[%clk 0:02:02.3]} 2. Nc3 {[%clk 0:02:57.3]}
2... Bg7 {[%clk 0:02:03.7]} 3. f4 {[%clk 0:02:57.8]} 3... d6 {[%clk 0:02:04.8]}
4. Nf3 {[%clk 0:02:58.5]} 4... Nf6 {[%clk 0:02:06.2]} 5. Bc4 {[%clk 0:02:58.5]}
5... O-O {[%clk 0:02:07.4]} 6. d3 {[%clk 0:02:59.7]} 6... c6 {[%clk 0:02:08]} 7.
Bb3 {[%clk 0:02:57.3]} 7... a5 {[%clk 0:02:04.8]} 8. a4 {[%clk 0:02:57]} 8...
Na6 {[%clk 0:02:05.9]} 9. O-O {[%clk 0:02:53.3]} 9... d5 {[%clk 0:01:58.7]} 10.
e5 {[%clk 0:02:52.7]} 10... Ng4 {[%clk 0:02:00.1]} 11. d4 {[%clk 0:02:48.3]}
11... f5 {[%clk 0:01:54.7]} 12. h3 {[%clk 0:02:39.4]} 12... Nh6 {[%clk
0:01:54.8]} 13. Be3 {[%clk 0:02:39.3]} 13... Nf7 {[%clk 0:01:51.5]} 14. Bf2
{[%clk 0:02:27]} 14... Nc7 {[%clk 0:01:49.5]} 15. Bh4 {[%clk 0:02:15]} 15... Ne6
{[%clk 0:01:45.7]} 16. Ne2 {[%clk 0:02:16]} 16... b6 {[%clk 0:01:43.4]} 17. c4
{[%clk 0:02:10.9]} 17... Ba6 {[%clk 0:01:38.3]} 18. cxd5 {[%clk 0:02:06.4]}
18... cxd5 {[%clk 0:01:40.2]} 19. Rf2 {[%clk 0:01:44.7]} 19... Rc8 {[%clk
0:01:33.6]} 20. Bg3 {[%clk 0:01:39.1]} 20... Qd7 {[%clk 0:01:28]} 21. Nc3 {[%clk
0:01:37.7]} 21... Bc4 {[%clk 0:01:27.3]} 22. Nd2 {[%clk 0:01:18.3]} 22... Nxd4
{[%clk 0:01:20]} 23. Nxc4 {[%clk 0:00:59.7]} 23... dxc4 {[%clk 0:01:21.1]} 24.
Rd2 {[%clk 0:01:00.6]} 24... Rfd8 {[%clk 0:01:20.1]} 25. Nb5 {[%clk 0:01:01.3]}
25... Nf3+ {[%clk 0:01:13]} 26. Qxf3 {[%clk 0:00:57.5]} 26... Qxd2 {[%clk
0:01:14.9]} 27. Rd1 {[%clk 0:00:53.4]} 27... Qxb2 {[%clk 0:01:12.2]} 28. Rxd8+
{[%clk 0:00:53.4]} 28... Rxd8 {[%clk 0:01:10.5]} 29. Bxc4 {[%clk 0:00:53.1]}
29... Qc1+ {[%clk 0:01:11.5]} 30. Bf1 {[%clk 0:00:52.3]} 30... e6 {[%clk
0:01:00.2]} 31. Bh4 {[%clk 0:00:47.1]} 31... Rd1 {[%clk 0:00:56.3]} 32. Be7
{[%clk 0:00:48]} 32... Bf8 {[%clk 0:00:54.8]} 33. Bd6 {[%clk 0:00:41.6]} 33...
Nxd6 {[%clk 0:00:52.2]} 34. exd6 {[%clk 0:00:42]} 34... Bxd6 {[%clk 0:00:53.2]}
35. Nxd6 {[%clk 0:00:42.3]} 35... Qc5+ {[%clk 0:00:47.3]} 36. Kh2 {[%clk
0:00:40.8]} 36... Qxd6 {[%clk 0:00:48.4]} 37. Bc4 {[%clk 0:00:40.5]} 37... Rd4
{[%clk 0:00:49.8]} 0-1

[Event "*** Titled Tuesday Blitz"]
[Site "Chess.com"]
[Date "2019.11.05"]
[Round "1"]
[White "Zq1"]
[Black "politeplayer"]
[Result "1-0"]
[WhiteElo "2603"]
[BlackElo "2215"]
[TimeControl "180+2"]
[EndTime "13:07:32 PST"]
[Termination "Zq1 won by checkmate"]

1. d4 {[%clk 0:02:06.1]} 1... Nf6 {[%clk 0:02:59.5]} 2. c4 {[%clk 0:02:07.1]}
2... c5 {[%clk 0:02:59.7]} 3. Nf3 {[%clk 0:02:07.3]} 3... cxd4 {[%clk
0:02:57.7]} 4. Nxd4 {[%clk 0:02:08.4]} 4... g6 {[%clk 0:02:58.7]} 5. Nc3 {[%clk
0:02:09.2]} 5... Bg7 {[%clk 0:02:59.9]} 6. e4 {[%clk 0:02:10.8]} 6... Nc6 {[%clk
0:02:59.7]} 7. Be3 {[%clk 0:02:11]} 7... O-O {[%clk 0:02:59.1]} 8. Be2 {[%clk
0:02:12.1]} 8... d6 {[%clk 0:02:59.4]} 9. O-O {[%clk 0:02:12.7]} 9... Nd7 {[%clk
0:02:56.8]} 10. Qd2 {[%clk 0:02:12.2]} 10... Nc5 {[%clk 0:02:50]} 11. Rfd1
{[%clk 0:02:08.2]} 11... Nxd4 {[%clk 0:02:40.8]} 12. Bxd4 {[%clk 0:02:08.6]}
12... Bxd4 {[%clk 0:02:38.8]} 13. Qxd4 {[%clk 0:02:08.9]} 13... Be6 {[%clk
0:02:29]} 14. e5 {[%clk 0:02:08.2]} 14... Qa5 {[%clk 0:02:13.5]} 15. exd6 {[%clk
0:02:08.1]} 15... exd6 {[%clk 0:02:08.8]} 16. Qxd6 {[%clk 0:02:05.1]} 16... Rad8
{[%clk 0:01:53.4]} 17. Qe5 {[%clk 0:02:05.8]} 17... Rxd1+ {[%clk 0:01:50.3]} 18.
Rxd1 {[%clk 0:02:05.3]} 18... Qb4 {[%clk 0:01:43.8]} 19. Rd2 {[%clk 0:01:41.8]}
19... Na4 {[%clk 0:01:22.5]} 20. a3 {[%clk 0:01:34.6]} 20... Qb3 {[%clk
0:01:23.3]} 21. Bd1 {[%clk 0:01:33.3]} 21... Qxc4 {[%clk 0:00:51.1]} 22. Bxa4
{[%clk 0:01:33.3]} 22... f6 {[%clk 0:00:49.6]} 23. Qe4 {[%clk 0:01:27.3]} 23...
Qc8 {[%clk 0:00:46.5]} 24. h3 {[%clk 0:01:25.5]} 24... a6 {[%clk 0:00:46.1]} 25.
Qd4 {[%clk 0:01:21]} 25... b5 {[%clk 0:00:43.2]} 26. Bd1 {[%clk 0:01:19.6]}
26... Kg7 {[%clk 0:00:40.4]} 27. Bf3 {[%clk 0:01:19.5]} 27... Re8 {[%clk
0:00:39.6]} 28. h4 {[%clk 0:01:18.4]} 28... Qc7 {[%clk 0:00:40.1]} 29. g3 {[%clk
0:01:18.2]} 29... Bh3 {[%clk 0:00:39]} 30. Kh2 {[%clk 0:01:15.6]} 30... Bf5
{[%clk 0:00:33.2]} 31. Nd5 {[%clk 0:01:16.2]} 31... Qc1 {[%clk 0:00:30.1]} 32.
Qxf6+ {[%clk 0:01:12.2]} 32... Kg8 {[%clk 0:00:30.4]} 33. Qg5 {[%clk 0:01:08]}
33... Re1 {[%clk 0:00:20.8]} 34. Ne7+ {[%clk 0:01:05.7]} 34... Kf7 {[%clk
0:00:21]} 35. Nxf5 {[%clk 0:01:04.9]} 35... gxf5 {[%clk 0:00:19]} 36. Bh5+
{[%clk 0:01:01]} 36... Ke6 {[%clk 0:00:19]} 37. Qh6+ {[%clk 0:00:56.5]} 37...
Ke7 {[%clk 0:00:18.6]} 38. Qd6# {[%clk 0:00:57.1]} 1-0

[Event "*** Titled Tuesday Blitz"]
[Site "Chess.com"]
[Date "2019.11.05"]
[Round "1"]
[White "maxip32"]
[Black "Zaven_ChessMood"]
[Result "1/2-1/2"]
[WhiteElo "2482"]
[BlackElo "2861"]
[TimeControl "180+2"]
[EndTime "13:07:33 PST"]
[Termination "Game drawn by repetition"]

1. e4 {[%clk 0:03:01.9]} 1... c5 {[%clk 0:03:00.9]} 2. Nf3 {[%clk 0:03:02.7]}
2... d6 {[%clk 0:03:02.8]} 3. d4 {[%clk 0:03:03.9]} 3... cxd4 {[%clk 0:03:04.7]}
4. Nxd4 {[%clk 0:03:05.5]} 4... Nf6 {[%clk 0:03:05.2]} 5. Nc3 {[%clk 0:03:06.9]}
5... a6 {[%clk 0:03:07.1]} 6. Be2 {[%clk 0:03:06.3]} 6... g6 {[%clk 0:03:07.8]}
7. O-O {[%clk 0:03:06.4]} 7... Bg7 {[%clk 0:03:09.5]} 8. Re1 {[%clk 0:03:07.5]}
8... O-O {[%clk 0:03:11.2]} 9. Bf1 {[%clk 0:03:08.6]} 9... Nc6 {[%clk
0:03:12.8]} 10. Nb3 {[%clk 0:03:07.4]} 10... Be6 {[%clk 0:03:13.9]} 11. Nd5
{[%clk 0:03:07.3]} 11... Rc8 {[%clk 0:03:13.9]} 12. c3 {[%clk 0:03:07.8]} 12...
Ne5 {[%clk 0:03:11.9]} 13. a4 {[%clk 0:03:01.1]} 13... Bg4 {[%clk 0:03:07.2]}
14. Be2 {[%clk 0:02:30.1]} 14... Bxe2 {[%clk 0:03:04.2]} 15. Qxe2 {[%clk
0:02:32]} 15... e6 {[%clk 0:03:04.2]} 16. Nxf6+ {[%clk 0:02:29.1]} 16... Qxf6
{[%clk 0:03:06.1]} 17. Nd4 {[%clk 0:02:26.7]} 17... Rfd8 {[%clk 0:03:05]} 18.
Ra3 {[%clk 0:02:02.8]} 18... Qe7 {[%clk 0:03:04.7]} 19. Rb3 {[%clk 0:01:59.3]}
19... d5 {[%clk 0:03:05.2]} 20. f4 {[%clk 0:01:58.5]} 20... Nc6 {[%clk
0:02:55.4]} 21. Nxc6 {[%clk 0:01:58.6]} 21... Rxc6 {[%clk 0:02:54.1]} 22. e5
{[%clk 0:01:57.9]} 22... Rc4 {[%clk 0:02:52.9]} 23. a5 {[%clk 0:01:54.6]} 23...
h5 {[%clk 0:02:49.6]} 24. Be3 {[%clk 0:01:52.5]} 24... h4 {[%clk 0:02:46.5]} 25.
Rb6 {[%clk 0:01:48.5]} 25... Bh6 {[%clk 0:02:42.8]} 26. g3 {[%clk 0:01:48.4]}
26... Re4 {[%clk 0:02:41.3]} 27. Qf2 {[%clk 0:01:46.9]} 27... Rc8 {[%clk
0:02:40.4]} 28. Bd4 {[%clk 0:01:43.5]} 28... Rxe1+ {[%clk 0:02:35.2]} 29. Qxe1
{[%clk 0:01:45.4]} 29... Rc4 {[%clk 0:02:30.1]} 30. b3 {[%clk 0:01:43.7]} 30...
Rc7 {[%clk 0:02:30.1]} 31. Qe3 {[%clk 0:01:21.9]} 31... Qa3 {[%clk 0:02:29]} 32.
gxh4 {[%clk 0:01:15.8]} 32... Qa1+ {[%clk 0:02:26.4]} 33. Kg2 {[%clk 0:01:16.8]}
33... Qb2+ {[%clk 0:02:27.4]} 34. Kg3 {[%clk 0:01:17]} 34... Qc2 {[%clk
0:02:26.6]} 35. Qf3 {[%clk 0:01:14.6]} 35... Qd2 {[%clk 0:02:24.8]} 36. Rd6
{[%clk 0:01:10.1]} 36... Qe1+ {[%clk 0:02:16.4]} 37. Kh3 {[%clk 0:01:08.1]}
37... Kh7 {[%clk 0:02:12.7]} 38. h5 {[%clk 0:01:08.5]} 38... gxh5 {[%clk
0:02:09.8]} 39. f5 {[%clk 0:01:03.9]} 39... Bg5 {[%clk 0:02:02.5]} 40. Qxh5+
{[%clk 0:01:01.5]} 40... Bh6 {[%clk 0:02:03.5]} 41. fxe6 {[%clk 0:00:58.8]}
41... Qf1+ {[%clk 0:02:01.6]} 42. Kh4 {[%clk 0:00:49.2]} 42... Qf4+ {[%clk
0:01:58.2]} 43. Kh3 {[%clk 0:00:50]} 43... Qf1+ {[%clk 0:01:58.8]} 44. Kh4
{[%clk 0:00:51.1]} 44... Qf4+ {[%clk 0:01:02.7]} 45. Kh3 {[%clk 0:00:51.7]}
45... Qf1+ {[%clk 0:01:03.6]} 1/2-1/2

[Event "*** Titled Tuesday Blitz"]
[Site "Chess.com"]
[Date "2019.11.05"]
[Round "1"]
[White "kikydu96"]
[Black "Dedic8"]
[Result "0-1"]
[WhiteElo "2398"]
[BlackElo "2745"]
[TimeControl "180+2"]
[EndTime "13:07:40 PST"]
[Termination "Dedic8 won by resignation"]

1. e4 {[%clk 0:03:00.8]} 1... c6 {[%clk 0:03:00.6]} 2. d4 {[%clk 0:03:00.1]}
2... d5 {[%clk 0:03:02.5]} 3. Nc3 {[%clk 0:03:00.4]} 3... dxe4 {[%clk
0:03:02.3]} 4. Nxe4 {[%clk 0:03:01.6]} 4... Bf5 {[%clk 0:03:04]} 5. Ng3 {[%clk
0:03:02.1]} 5... Bg6 {[%clk 0:03:05.5]} 6. h4 {[%clk 0:03:03.1]} 6... h6 {[%clk
0:03:05.9]} 7. Nf3 {[%clk 0:03:01.8]} 7... Nd7 {[%clk 0:03:06.7]} 8. h5 {[%clk
0:03:01.4]} 8... Bh7 {[%clk 0:03:08.1]} 9. Bd3 {[%clk 0:03:02.8]} 9... Bxd3
{[%clk 0:03:09.5]} 10. Qxd3 {[%clk 0:03:04.1]} 10... e6 {[%clk 0:03:08.5]} 11.
Bd2 {[%clk 0:03:04.5]} 11... Ngf6 {[%clk 0:03:09.3]} 12. O-O-O {[%clk
0:03:04.9]} 12... Be7 {[%clk 0:03:10.4]} 13. Kb1 {[%clk 0:03:04.7]} 13... O-O
{[%clk 0:03:10.5]} 14. Ne4 {[%clk 0:03:04.6]} 14... c5 {[%clk 0:03:11.5]} 15.
dxc5 {[%clk 0:02:49.6]} 15... Nxc5 {[%clk 0:03:05.6]} 16. Nxc5 {[%clk
0:02:42.4]} 16... Bxc5 {[%clk 0:03:07.5]} 17. Be3 {[%clk 0:02:40.1]} 17... Qxd3
{[%clk 0:02:53.7]} 18. Rxd3 {[%clk 0:02:41.4]} 18... Bxe3 {[%clk 0:02:55.3]} 19.
Rxe3 {[%clk 0:02:43.1]} 19... Rfd8 {[%clk 0:02:56]} 20. Rb3 {[%clk 0:02:39.9]}
20... b6 {[%clk 0:02:54.4]} 21. a4 {[%clk 0:02:39.9]} 21... Rd5 {[%clk 0:02:55]}
22. Rb5 {[%clk 0:02:33.8]} 22... Rad8 {[%clk 0:02:55.6]} 23. Rxd5 {[%clk
0:02:21.9]} 23... Rxd5 {[%clk 0:02:55.7]} 24. Rh4 {[%clk 0:02:23.5]} 24... Rxh5
{[%clk 0:02:47.7]} 25. Rc4 {[%clk 0:02:24]} 25... Rc5 {[%clk 0:02:41.8]} 26.
Rxc5 {[%clk 0:02:20.3]} 26... bxc5 {[%clk 0:02:43.7]} 27. Ka2 {[%clk 0:02:19.1]}
27... Kf8 {[%clk 0:02:17.1]} 28. Kb3 {[%clk 0:02:18.8]} 28... Ke7 {[%clk
0:02:18.4]} 29. Ne5 {[%clk 0:02:19.6]} 29... h5 {[%clk 0:01:33.2]} 30. Nc6+
{[%clk 0:02:16.6]} 30... Kd7 {[%clk 0:01:34.2]} 31. Nxa7 {[%clk 0:02:17.4]}
31... g5 {[%clk 0:01:33.5]} 32. Nb5 {[%clk 0:02:12.9]} 32... h4 {[%clk 0:01:33]}
33. Nc3 {[%clk 0:02:12.1]} 33... g4 {[%clk 0:01:21.5]} 34. Ne2 {[%clk
0:02:10.9]} 34... Ne4 {[%clk 0:01:08.4]} 35. Kc4 {[%clk 0:02:04.5]} 35... Kc6
{[%clk 0:01:09.3]} 36. Kd3 {[%clk 0:01:58.8]} 36... Nxf2+ {[%clk 0:01:06.5]} 37.
Ke3 {[%clk 0:01:59.1]} 37... Nd1+ {[%clk 0:01:05]} 38. Kf4 {[%clk 0:01:59.9]}
38... f5 {[%clk 0:00:55.9]} 39. b3 {[%clk 0:01:54.3]} 39... Nf2 {[%clk
0:00:51.1]} 40. Ke5 {[%clk 0:01:46.9]} 40... Ne4 {[%clk 0:00:52.3]} 41. Nf4
{[%clk 0:01:44.6]} 41... Ng5 {[%clk 0:00:50.7]} 42. Kf6 {[%clk 0:01:38.2]} 42...
h3 {[%clk 0:00:49.4]} 43. gxh3 {[%clk 0:01:24.5]} 43... gxh3 {[%clk 0:00:50.9]}
44. Nh5 {[%clk 0:01:07.8]} 44... Ne4+ {[%clk 0:00:50.5]} 0-1

[Event "*** Titled Tuesday Blitz"]
[Site "Chess.com"]
[Date "2019.11.05"]
[Round "1"]
[White "CarlssonLudvig"]
[Black "gena217"]
[Result "0-1"]
[WhiteElo "2495"]
[BlackElo "2936"]
[TimeControl "180+2"]
[EndTime "13:07:43 PST"]
[Termination "gena217 won by resignation"]

1. Nf3 {[%clk 0:03:01.9]} 1... d5 {[%clk 0:02:59.6]} 2. b3 {[%clk 0:02:57.1]}
2... Bg4 {[%clk 0:02:55.4]} 3. e3 {[%clk 0:02:56.7]} 3... e5 {[%clk 0:02:54.3]}
4. h3 {[%clk 0:02:55.8]} 4... Bxf3 {[%clk 0:02:54.1]} 5. Qxf3 {[%clk 0:02:57.7]}
5... c6 {[%clk 0:02:55.4]} 6. Bb2 {[%clk 0:02:52.7]} 6... Nd7 {[%clk 0:02:36.1]}
7. d3 {[%clk 0:02:52.5]} 7... Bd6 {[%clk 0:02:35.8]} 8. Nd2 {[%clk 0:02:40.3]}
8... Ne7 {[%clk 0:02:34.8]} 9. Qe2 {[%clk 0:02:36.3]} 9... O-O {[%clk
0:02:34.9]} 10. g3 {[%clk 0:02:37.7]} 10... f5 {[%clk 0:02:34.8]} 11. Bg2 {[%clk
0:02:37.1]} 11... Nf6 {[%clk 0:02:33.8]} 12. O-O {[%clk 0:02:33.7]} 12... Qd7
{[%clk 0:02:33.9]} 13. Nf3 {[%clk 0:02:29.7]} 13... Ng6 {[%clk 0:02:29]} 14. d4
{[%clk 0:02:30.4]} 14... e4 {[%clk 0:01:56.5]} 15. Ne5 {[%clk 0:02:29.4]} 15...
Qe6 {[%clk 0:01:57.6]} 16. Nxg6 {[%clk 0:02:26.1]} 16... hxg6 {[%clk 0:01:59.5]}
17. h4 {[%clk 0:02:11.9]} 17... g5 {[%clk 0:01:50.1]} 18. hxg5 {[%clk
0:02:07.7]} 18... Nh7 {[%clk 0:01:50.6]} 19. Kh2 {[%clk 0:00:56.7]} 19... Nxg5
{[%clk 0:01:49.3]} 20. Rh1 {[%clk 0:00:58.1]} 20... g6 {[%clk 0:01:28.4]} 21.
Kg1 {[%clk 0:00:57.6]} 21... Kg7 {[%clk 0:01:28.3]} 22. c4 {[%clk 0:00:56.2]}
22... Rh8 {[%clk 0:01:28.7]} 23. Rxh8 {[%clk 0:00:53.9]} 23... Rxh8 {[%clk
0:01:28.7]} 24. Rc1 {[%clk 0:00:52]} 24... a6 {[%clk 0:01:10.3]} 25. cxd5 {[%clk
0:00:49.5]} 25... cxd5 {[%clk 0:01:12.2]} 26. Rc5 {[%clk 0:00:44.1]} 26... Rh7
{[%clk 0:01:03.5]} 27. Qc2 {[%clk 0:00:36.3]} 27... Bxc5 {[%clk 0:01:01]} 28.
dxc5+ {[%clk 0:00:37.6]} 28... Kh6 {[%clk 0:01:02.4]} 29. Qc3 {[%clk 0:00:32.7]}
29... d4 {[%clk 0:00:56.2]} 30. Qxd4 {[%clk 0:00:31.1]} 30... Qd7 {[%clk
0:00:51.7]} 31. Qf6 {[%clk 0:00:23.6]} 31... Qd1+ {[%clk 0:00:51.4]} 32. Kh2
{[%clk 0:00:24.9]} 32... Kh5 {[%clk 0:00:47.6]} 33. Bh3 {[%clk 0:00:09.7]} 33...
Nf3+ {[%clk 0:00:47.4]} 0-1

[Event "*** Titled Tuesday Blitz"]
[Site "Chess.com"]
[Date "2019.11.05"]
[Round "1"]
[White "MarcoRiehle"]
[Black "gemarin"]
[Result "1/2-1/2"]
[WhiteElo "2549"]
[BlackElo "2133"]
[TimeControl "180+2"]
[EndTime "13:07:43 PST"]
[Termination "Game drawn - insufficient material"]

1. e4 {[%clk 0:03:00.1]} 1... c5 {[%clk 0:02:55.8]} 2. Nf3 {[%clk 0:02:59.7]}
2... d6 {[%clk 0:02:56.7]} 3. d4 {[%clk 0:02:59.4]} 3... cxd4 {[%clk 0:02:57.7]}
4. Nxd4 {[%clk 0:03:01.3]} 4... Nf6 {[%clk 0:02:59.1]} 5. f3 {[%clk 0:03:01.5]}
5... Nc6 {[%clk 0:02:51.8]} 6. c4 {[%clk 0:03:00.8]} 6... g6 {[%clk 0:02:48.6]}
7. Nc3 {[%clk 0:03:01]} 7... Bg7 {[%clk 0:02:49.7]} 8. Be3 {[%clk 0:03:01.1]}
8... O-O {[%clk 0:02:50.4]} 9. Qd2 {[%clk 0:03:01.2]} 9... Ne5 {[%clk
0:02:49.9]} 10. Be2 {[%clk 0:03:01]} 10... Bd7 {[%clk 0:02:50.4]} 11. O-O {[%clk
0:03:01.5]} 11... a6 {[%clk 0:02:50.3]} 12. Rac1 {[%clk 0:02:59.1]} 12... Rc8
{[%clk 0:02:50.9]} 13. b3 {[%clk 0:02:59.9]} 13... Re8 {[%clk 0:02:49.5]} 14.
Rc2 {[%clk 0:02:57.2]} 14... Qa5 {[%clk 0:02:46.4]} 15. Rfc1 {[%clk 0:02:57.1]}
15... Nc6 {[%clk 0:02:43.5]} 16. Bf1 {[%clk 0:02:53.8]} 16... Nxd4 {[%clk
0:02:43.9]} 17. Bxd4 {[%clk 0:02:54.3]} 17... b5 {[%clk 0:02:24.1]} 18. Bxf6
{[%clk 0:02:42.1]} 18... exf6 {[%clk 0:02:15.8]} 19. Nd5 {[%clk 0:02:44]} 19...
Qxd2 {[%clk 0:02:14]} 20. Rxd2 {[%clk 0:02:42.8]} 20... bxc4 {[%clk 0:02:13.7]}
21. Rxc4 {[%clk 0:02:41.4]} 21... Rxc4 {[%clk 0:02:10.2]} 22. Bxc4 {[%clk
0:02:41.1]} 22... f5 {[%clk 0:02:06.5]} 23. exf5 {[%clk 0:02:40.9]} 23... Bxf5
{[%clk 0:02:06.9]} 24. g4 {[%clk 0:02:41.1]} 24... Bc8 {[%clk 0:02:02.3]} 25.
Kg2 {[%clk 0:02:36]} 25... Kf8 {[%clk 0:01:56.6]} 26. Nb6 {[%clk 0:02:34.3]}
26... Bb7 {[%clk 0:01:54.2]} 27. Rxd6 {[%clk 0:02:32.6]} 27... Be5 {[%clk
0:01:47.8]} 28. Rd7 {[%clk 0:02:28]} 28... Re7 {[%clk 0:01:48.5]} 29. Rxe7
{[%clk 0:02:27.9]} 29... Kxe7 {[%clk 0:01:49.6]} 30. Bd5 {[%clk 0:02:29.3]}
30... Bxd5 {[%clk 0:01:43.7]} 31. Nxd5+ {[%clk 0:02:31.2]} 31... Kd6 {[%clk
0:01:45.2]} 32. Ne3 {[%clk 0:02:30.1]} 32... Kc5 {[%clk 0:01:44.9]} 33. h4
{[%clk 0:02:26.3]} 33... Kd4 {[%clk 0:01:42.9]} 34. Nc4 {[%clk 0:02:24.6]} 34...
Bc7 {[%clk 0:01:43.8]} 35. h5 {[%clk 0:02:25.5]} 35... Kc3 {[%clk 0:01:42.5]}
36. hxg6 {[%clk 0:02:25.8]} 36... hxg6 {[%clk 0:01:43.6]} 37. Kf2 {[%clk
0:02:25.8]} 37... a5 {[%clk 0:01:44.9]} 38. Ke2 {[%clk 0:02:24.9]} 38... a4
{[%clk 0:01:46]} 39. Nd2 {[%clk 0:02:24.2]} 39... axb3 {[%clk 0:01:44.7]} 40.
axb3 {[%clk 0:02:26.1]} 40... Bf4 {[%clk 0:01:43.5]} 41. Ne4+ {[%clk 0:02:22.1]}
41... Kxb3 {[%clk 0:01:44.4]} 42. Kd3 {[%clk 0:02:24]} 42... Be5 {[%clk
0:01:45]} 43. Nd2+ {[%clk 0:02:17]} 43... Kb4 {[%clk 0:01:46]} 44. Ke4 {[%clk
0:02:17]} 44... Bc3 {[%clk 0:01:43.1]} 45. Nf1 {[%clk 0:02:17.2]} 45... Kc5
{[%clk 0:01:43.6]} 46. Ne3 {[%clk 0:02:14.8]} 46... Kd6 {[%clk 0:01:40.1]} 47.
f4 {[%clk 0:02:13.2]} 47... Be1 {[%clk 0:01:31.7]} 48. g5 {[%clk 0:02:00.2]}
48... Ke6 {[%clk 0:01:28.6]} 49. Ng4 {[%clk 0:01:57.7]} 49... Bc3 {[%clk
0:01:26.7]} 50. Kf3 {[%clk 0:01:55.5]} 50... f6 {[%clk 0:01:26]} 51. gxf6 {[%clk
0:01:36.1]} 51... Bxf6 {[%clk 0:01:26]} 52. Ke4 {[%clk 0:01:35.6]} 52... Bb2
{[%clk 0:01:23.1]} 53. Ne5 {[%clk 0:01:29.9]} 53... Bxe5 {[%clk 0:01:17.4]} 54.
fxe5 {[%clk 0:01:31.8]} 54... g5 {[%clk 0:01:18.6]} 55. Kd4 {[%clk 0:01:31.7]}
55... g4 {[%clk 0:01:19.6]} 56. Ke4 {[%clk 0:01:31.8]} 56... g3 {[%clk
0:01:20.5]} 57. Kf3 {[%clk 0:01:32.7]} 57... g2 {[%clk 0:01:21.2]} 58. Kxg2
{[%clk 0:01:29.4]} 58... Kf5 {[%clk 0:01:21.5]} 59. Kf3 {[%clk 0:01:26.9]} 59...
Kxe5 {[%clk 0:01:22.2]} 1/2-1/2

[Event "*** Titled Tuesday Blitz"]
[Site "Chess.com"]
[Date "2019.11.05"]
[Round "1"]
[White "Philosopherrr"]
[Black "mikhaillushenkov"]
[Result "0-1"]
[WhiteElo "2342"]
[BlackElo "2695"]
[TimeControl "180+2"]
[EndTime "13:07:44 PST"]
[Termination "mikhaillushenkov won by resignation"]

1. Nf3 {[%clk 0:02:59.5]} 1... d5 {[%clk 0:03:00.1]} 2. g3 {[%clk 0:02:59.5]}
2... Nc6 {[%clk 0:03:01]} 3. Bg2 {[%clk 0:03:00.1]} 3... e5 {[%clk 0:03:02.3]}
4. d3 {[%clk 0:03:01.3]} 4... Nf6 {[%clk 0:03:03.4]} 5. O-O {[%clk 0:03:01]}
5... a5 {[%clk 0:03:02.6]} 6. Bg5 {[%clk 0:02:58.9]} 6... Be7 {[%clk 0:03:02.7]}
7. Nc3 {[%clk 0:02:57.7]} 7... d4 {[%clk 0:02:59.8]} 8. Bxf6 {[%clk 0:02:50.7]}
8... Bxf6 {[%clk 0:03:01.7]} 9. Ne4 {[%clk 0:02:50.7]} 9... Be7 {[%clk
0:02:59.2]} 10. e3 {[%clk 0:02:49.8]} 10... O-O {[%clk 0:02:56.1]} 11. exd4
{[%clk 0:02:51]} 11... exd4 {[%clk 0:02:56.7]} 12. Re1 {[%clk 0:02:51.8]} 12...
h6 {[%clk 0:02:53.5]} 13. Ned2 {[%clk 0:02:52.3]} 13... Be6 {[%clk 0:02:53.4]}
14. Ne5 {[%clk 0:02:48]} 14... Nxe5 {[%clk 0:02:52.5]} 15. Rxe5 {[%clk
0:02:49.2]} 15... c6 {[%clk 0:02:54]} 16. a4 {[%clk 0:02:43.2]} 16... Bd6 {[%clk
0:02:44.6]} 17. Re1 {[%clk 0:02:42.5]} 17... Qd7 {[%clk 0:02:45.4]} 18. Nc4
{[%clk 0:02:39.5]} 18... Bc7 {[%clk 0:02:46.5]} 19. Qh5 {[%clk 0:02:37.7]} 19...
Rfe8 {[%clk 0:02:36.4]} 20. Qc5 {[%clk 0:02:31.4]} 20... Qe7 {[%clk 0:01:42.4]}
21. Qxd4 {[%clk 0:02:26.9]} 21... Rad8 {[%clk 0:01:40.1]} 22. Qa7 {[%clk
0:02:23]} 22... Qb4 {[%clk 0:01:04.7]} 23. c3 {[%clk 0:02:18.6]} 23... Qb3
{[%clk 0:01:05.8]} 24. Nxa5 {[%clk 0:02:14.4]} 24... Bxa5 {[%clk 0:01:04.5]} 25.
Qxa5 {[%clk 0:02:15]} 25... Rxd3 {[%clk 0:01:04.9]} 26. Bh3 {[%clk 0:01:48.5]}
26... Qxb2 {[%clk 0:01:02.1]} 27. Bxe6 {[%clk 0:01:48.8]} 27... Rxe6 {[%clk
0:01:03.7]} 28. Reb1 {[%clk 0:01:31.8]} 28... Qxc3 {[%clk 0:00:55.1]} 29. Qa8+
{[%clk 0:01:32.9]} 29... Kh7 {[%clk 0:00:52.5]} 30. Qxb7 {[%clk 0:01:34.2]}
30... Re2 {[%clk 0:00:47.7]} 31. Qxf7 {[%clk 0:01:32.8]} 31... Rf3 {[%clk
0:00:45]} 32. Qh5 {[%clk 0:00:30.7]} 32... Rfxf2 {[%clk 0:00:42.2]} 33. Rf1
{[%clk 0:00:26.9]} 33... Qd4 {[%clk 0:00:36.2]} 0-1